Cogmind - Beta 15 @@@ ROGUE MODE // 2025.08.29 @ 18:09:53 Player: the Result: Destroyed by as-82995 with Assembled Blade Performance ------------- Evolutions (0) 0 Regions Visited (2) 400 Robots Destroyed (29) 145 Value Destroyed (492) 492 Prototype IDs (4) 80 Alien Tech Used (0) 0 Bonus (0) 0 TOTAL SCORE: 1117 Bonus ------- None Cogmind --------- Core Integrity 0/250 Matter 245/300 Energy 100/100 System Corruption 0% Temperature Cool (0) Movement Rolling (130) Ox2 Location -10/Mines Parts ------- > --- POWER (1) -------- (None) > --- PROPULSION (2) --- Compact Wheel > --- UTILITY (2) ------ High-capacity Storage Unit > --- WEAPON (2) ------- (None) > --- INVENTORY (20) --- Ion Engine Aluminum Leg Aluminum Leg Aluminum Leg Aluminum Leg Aluminum Leg Compact Wheel Heat Sink Large Storage Unit High-capacity Matter Pod (200) Seismic Detector Light Armor Plating Light Armor Plating Light Armor Plating Medium Laser Beam Cannon Grenade Launcher Grenade Launcher Datajack Mining Laser Peak State ------------ > --- POWER ------------ Ion Engine > --- PROPULSION ------- Compact Wheel Compact Wheel > --- UTILITY ---------- Heat Sink High-capacity Storage Unit > --- WEAPON ----------- Beam Cannon Beam Cannon > --- INVENTORY -------- Aluminum Leg Aluminum Leg Aluminum Leg Aluminum Leg Aluminum Leg Aluminum Leg Aluminum Leg Small Storage Unit Large Storage Unit High-capacity Matter Pod Seismic Detector Seismic Detector Light Armor Plating Medium Laser Assault Rifle Grenade Launcher Grenade Launcher Grenade Launcher Datajack Mining Laser [Rating: 9] Favorites ----------- Power Ion Engine Engine Ion Engine Propulsion Compact Wheel Wheel Compact Wheel Utility Seismic Detector Device Seismic Detector Storage High-capacity Storage Unit Weapon Beam Cannon Energy Gun Medium Laser Energy Cannon Beam Cannon Launcher Grenade Launcher Special Weapon Mining Laser Build | -11 -10 -10 ------- Run | Yrd Mat Min Slots Evolved . | . . . Power . | . . . Propulsion . | . . . Utility . | . . . Weapon . | . . . Parts Attached 20 | 8 11 1 Power 3 | 1 2 . Engine 3 | 1 2 . Core . | . . . Reactor . | . . . Propulsion 5 | 2 2 1 Treads . | . . . Leg . | . . . Wheel 5 | 2 2 1 Hover . | . . . Flight . | . . . Utility 6 | 3 3 . Device 3 | 2 1 . Storage 3 | 1 2 . Processor . | . . . Hackware . | . . . Protection . | . . . Artifact . | . . . Weapon 6 | 2 4 . Energy Gun 2 | 2 . . Energy Cannon 2 | . 2 . Ballistic Gun . | . . . Ballistic Cannon . | . . . Launcher 1 | . 1 . Special Weapon 1 | . 1 . Impact Weapon . | . . . Slashing Weapon . | . . . Piercing Weapon . | . . . Special Melee Weapon . | . . . Unidentified Prototypes . | . . . Parts Lost 6 | . 1 5 Power 1 | . . 1 Propulsion 1 | . . 1 Utility 1 | . . 1 Weapon 3 | . 1 2 Highest Loss Streak 5 | . 1 5 To Critical Strikes . | . . . Average Backups 13 | 2 13 19 Power . | . . 1 Propulsion 4 | 1 4 5 Utility 4 | . 4 7 Weapon 3 | 1 3 5 Tool/Special . | . . . Unused Backups 21 | 2 5 14 Power 1 | . 1 . Propulsion 11 | 2 3 6 Utility 4 | . . 4 Weapon 4 | . 1 3 Tool/Special 1 | . . 1 Average Slot Usage (%) 99 | . 99 98 Engine 13 | . 14 13 Wheel 28 | . 28 28 Device 13 | . 14 13 Storage 14 | . 14 14 Energy Gun 7 | . 8 . Energy Cannon 15 | . 15 13 Launcher 2 | . . 14 Special Weapon 2 | . 3 . Peak Build Rating 9 | 7 9 9 Average Rating 7 | 5 8 8 On Entrance 5 | . 7 9 Naked Turns . | . . . Heaviest Build 52 | 12 52 52 Greatest Support 32 | 32 32 32 Greatest Overweight (x) 1 | . 1 1 Average Overweight (x) . | . . 1 Largest Inventory Capacity 20 | 8 20 20 Average Capacity 16 | 6 17 20 Most Carried 20 | 6 20 20 Average Carried 13 | 3 13 19 Final Capacity 20 | 8 20 20 Final Carried 20 | 5 20 20 Class Distribution -------------------- 100% | Mutant Dominant Class ---------------- Mutant | -10/Materials Mutant | -10/Mines Resources | -11 -10 -10 ----------- Run | Yrd Mat Min Matter Collected 665 | 280 345 40 Remotely . | . . . Salvage Created 867 | 181 605 81 Parts 59 | 16 32 11 Haulers Intercepted 2 | . 2 . Recyclers Shooed 3 | 1 1 1 Parts Field Recycled . | . . . Retrieved Matter . | . . . Parts Self-Destructed . | . . . Prevented . | . . . Kills | -11 -10 -10 ------- Run | Yrd Mat Min Combat Hostiles Destroyed 28 | . 11 17 Guns 4 | . 4 . Cannons 7 | . 7 . AOE 17 | . . 17 Classes Destroyed 8 | 2 4 2 Worker 1 | . . 1 Tunneler 5 | 5 . . Hauler 2 | . 2 . Recycler 3 | 1 2 . Watcher 1 | . 1 . Swarmer 9 | . 3 6 Grunt 8 | . 8 . Assembled 11 | . . 11 Best Kill Streak 11 | 4 4 11 Combat Bots Only 11 | . 3 11 Max Kills in Single Turn 4 | 1 1 4 Gunslinging . | . . . Exploded 3 | . . 3 Melee . | . . . Uniques/NPCs Destroyed . | . . . Combat | -11 -10 -10 -------- Run | Yrd Mat Min Hostile Shots Fired 66 | . 41 25 Missed 17 | . 11 6 Hits 49 | . 30 19 Melee 5 | . . 5 Projectile 44 | . 30 14 Critical Strikes 1 | . 1 . Damage Taken 766 | . 355 411 Core 272 | . 144 128 Absorbed by Shields . | . . . Regen/Repaired (Parts) 37 | . 37 . Core Remaining (%) 100 | 100 . . Volleys Fired 75 | 8 56 11 Largest 2 | 2 2 1 Hottest 120 | 90 120 60 Shots Fired 123 | 16 96 11 Gun 44 | 16 28 . Cannon 54 | . 53 1 Launcher 10 | . . 10 Special 15 | . 15 . Kinetic . | . . . Thermal 113 | 16 96 1 Explosive 10 | . . 10 Electromagnetic . | . . . Robot Hit Streak 14 | 3 14 1 Robot Miss Streak 4 | 2 4 2 Penetration Max . | . . . Secondary Targets . | . . . Shots Hit Robots 60 | 9 49 2 Core Hits 62 | 7 20 35 Critical Kills . | . . . Critical Parts Destroyed . | . . . Critical Strikes 1 | 1 . . Burn 1 | 1 . . Melee Attacks . | . . . Impact . | . . . Slashing . | . . . Piercing . | . . . Sneak Attacks . | . . . Combat Hostiles . | . . . Follow-up Attacks . | . . . Damage Inflicted 2019 | 107 750 1162 Guns 333 | 107 226 . Cannons 524 | . 524 . Explosions 1162 | . . 1162 Melee . | . . . Ramming . | . . . Kinetic . | . . . Thermal 857 | 107 750 . Explosive 1162 | . . 1162 Electromagnetic . | . . . Impact . | . . . Slashing . | . . . Piercing . | . . . Highest Corruption . | . . . Average Corruption . | . . . Corruption Purged . | . . . Corruption Blocked . | . . . Overload Shots . | . . . Overflow Damage 23 | . . 23 Projectiles . | . . . Explosions 23 | . . 23 Melee . | . . . Knockbacks . | . . . Impact . | . . . Kinetic . | . . . Secondary . | . . . Self-Inflicted Damage 44 | . . 44 Shots 2 | . . 2 Rammed . | . . . Targets Rammed . | . . . Kicked . | . . . Crushed . | . . . Highest Temperature 237 | 110 237 20 Average Temperature 45 | 37 47 12 Received Heat Transfer 191 | . 171 20 Siege Activations . | . . . Martial Activations . | . . . Shielding Activations . | . . . Robots Disrupted . | . . . Combat Hostiles . | . . . Robots Corrupted . | . . . Combat Hostiles . | . . . Parts Fried . | . . . Impact Corruptions . | . . . Robots Melted . | . . . Combat Hostiles . | . . . Parts Melted 4 | 2 2 . Heat Transferred 2052 | 359 1693 . Parts Sabotaged . | . . . Parts Stolen . | . . . Parts Stripped . | . . . Power Chain Reactions . | . . . Alert | -11 -10 -10 ------- Run | Yrd Mat Min Maximum Alert Level 1 | . . 1 Low Security (%) 99 | 100 100 95 Level 1 . | . . 4 Level 2 . | . . . Level 3 . | . . . Level 4 . | . . . Level 5 . | . . . High Security . | . . . Max Security . | . . . Peak Influence 201 | 10 81 201 Initial 12 | . . 12 Average 44 | 2 28 144 Influence Increases 587 | 30 329 228 Destroy 0b10 Robot/C 340 | . 220 120 Destroy 0b10 Robot/NC 60 | 30 25 5 Destroy Leader 66 | . 46 20 Successful Hack 10 | . 10 . Disable Machine 45 | . . 45 Destroy Structure 51 | . 13 38 Lose Combat Pursuer 15 | . 15 . Influence Decreases 507 | 30 296 181 Entered New Map 21 | . . 21 Time Decay 426 | 30 286 110 Lost Part 60 | . 10 50 Squads Dispatched 2 | . 2 . Investigation 1 | . 1 . Extermination . | . . . Reinforcement 1 | . 1 . Assault . | . . . Garrison . | . . . Intercept . | . . . Searches Triggered . | . . . Construction Impeded . | . . . Haulers Reinforced . | . . . Active Scanning Responses . | . . . Cargo Convoy Interrupts . | . . . Stealth | -11 -10 -10 --------- Run | Yrd Mat Min Distress Signals 2 | . 1 1 Communications Jammed . | . . . Distress Signals . | . . . Times Spotted 41 | . 19 22 Peak Tracking Total 19 | . 4 19 Tactical Retreats 1 | . 1 . Traps | -11 -10 -10 ------- Run | Yrd Mat Min Traps Triggered 1 | . 1 . Indirectly . | . . . Trap Hack Attempts . | . . . Triggered . | . . . Disarmed . | . . . Reprogrammed . | . . . Reused . | . . . Traps Extracted . | . . . Installed 5 | . . 5 Triggered . | . . . Most Traps Carried 1 | . . 1 Machines | -11 -10 -10 ---------- Run | Yrd Mat Min Machines Disabled 3 | . . 3 Max in Single Turn 2 | . . 2 Machines Repaired . | . . . Machines Dismantled . | . . . Machines Sabotaged . | . . . Overloaded Fab Kills . | . . . Hacking | -11 -10 -10 --------- Run | Yrd Mat Min Machines Accessed 8 | . 8 . Terminals 7 | . 7 . Fabricators . | . . . Repair Stations 1 | . 1 . Recycling Units . | . . . Scanalyzers . | . . . Garrison Access . | . . . Total Hacks 23 | . 23 . Successful 9 | . 9 . Failed 14 | . 14 . Catastrophic . | . . . Database Lockouts . | . . . Manual 13 | . 13 . Terminals 21 | . 21 . Fabricators . | . . . Repair Stations 2 | . 2 . Recycling Units . | . . . Scanalyzers . | . . . Garrison Access . | . . . Terminal Hacks 6 | . 6 . Part Schematic 2 | . 2 . Robot Analysis 1 | . 1 . Prototype ID Bank 2 | . 2 . Locate Traps 1 | . 1 . Fabricator Hacks . | . . . Repair Station Hacks 2 | . 2 . Scan Component 1 | . 1 . Repair 1 | . 1 . Recycling Unit Hacks . | . . . Scanalyzer . | . . . Garrison Access Hacks . | . . . Unauthorized Hacks 1 | . 1 . Terminals 1 | . 1 . Botnet 1 | . 1 . Fabricators . | . . . Repair Stations . | . . . Recycling Units . | . . . Scanalyzers . | . . . Garrison Access . | . . . Data Cores Recovered . | . . . Used . | . . . Hacking Detections 7 | . 7 . Full Trace Events . | . . . Feedback Events . | . . . Feedback Blocked . | . . . Robot Schematics Acquired . | . . . Robots Built . | . . . Authchips . | . . . Time . | . . . Total Robot Build Rating . | . . . Part Schematics Acquired 2 | . 2 . Parts Built . | . . . Authchips . | . . . Time . | . . . Total Part Build Rating . | . . . Parts Repaired 1 | . 1 . Time 26 | . 26 . Parts Recycled . | . . . Recycled Matter . | . . . Retrieved Matter . | . . . Retrieved Components . | . . . Parts Scanalyzed . | . . . Part Schematics Acquired . | . . . Parts Damaged . | . . . Bothacking | -11 -10 -10 ------------ Run | Yrd Mat Min Used RIF Installer . | . . . Robots Hacked . | . . . Non-combat . | . . . Combat . | . . . Robot Hacks Applied . | . . . Relay Couplers Released . | . . . Fabnet Peak Effective % . | . . . Robots Rewired . | . . . Allies Hacked . | . . . Hacks Repelled . | . . . Allies | -11 -10 -10 -------- Run | Yrd Mat Min Total Allies . | . . . Largest Group . | . . . Highest-Rated Group . | . . . Highest-Rated Ally . | . . . Total Orders . | . . . Ally Attacks . | . . . Total Damage . | . . . Kills . | . . . Allies Corrupted . | . . . Allies Melted . | . . . Intel | -11 -10 -10 ------- Run | Yrd Mat Min Active Infowar (turns) 942 | 84 651 207 Seismic 942 | 84 651 207 Robot Analysis Total 1 | . 1 . Derelict Logs Recovered 1 | . . 1 Drone Launches . | . . . Drone Recoveries . | . . . Exploration | -11 -10 -10 ------------- Run | Yrd Mat Min Turns Passed 1530 | 113 1183 234 Spaces Moved 1023 | 68 783 172 Core 1 | 1 . . Treads . | . . . Legs . | . . . Wheels 1022 | 67 783 172 Hover . | . . . Flight . | . . . Fastest Speed 50 | 50 100 115 Average Speed 108 | 99 107 115 Slowest Speed 115 | 100 115 115 Overloaded Moves . | . . . Propulsion Burnouts . | . . . Robots Hopped . | . . . Potential Cave-ins . | . . . Cave-ins Triggered . | . . . Exploration Rate (%) 51 | 6 98 49 Regions Visited 2 Branch Regions 1 Pre-discovered Areas . | . . . Known Exits Taken . | . . . Unknown Exits Taken 2 | 1 1 . Scrap Searched 1 | . . 1 Spaces Dug 9 | . 9 . Terrain Destroyed 66 | . 15 51 Melee . | . . . Projectile 15 | . 15 . AOE 51 | . . 51 Terrain Rammed . | . . . Walls Destroyed . | . . . Machines Disabled . | . . . Actions | -11 -10 -10 --------- Run | Yrd Mat Min Total 1295 | 94 1002 199 Wait 118 | . 118 . Move 1021 | 67 782 172 Hop . | . . . Pick Up 32 | 8 20 4 Fast Attach 8 | 7 1 . Attach 2 | . 2 . Detach 1 | . 1 . Swap 15 | 1 12 2 Drop 18 | 3 10 5 Fire 75 | 8 56 11 Melee . | . . . Ram . | . . . Kick . | . . . Crush . | . . . Escape Stasis . | . . . Rewire . | . . . Trap 5 | . . 5 Miscellaneous . | . . . Route ------- -11/Scrapyard -10/Materials (discovered 4 exits: [*Mat x3] / [*Min]) -10/Mines (discovered 1 exit: [*Mat]) History --------- Turn | Location | Event 11 | -11/Scrapyard | Discovered new exit (range 15) 114 | -11/Scrapyard | Entered Materials 307 | -10/Materials | Build established: Mutant 476 | -10/Materials | Discovered new exit (range 3) 600 | -10/Materials | Discovered new exit (range 5) 843 | -10/Materials | Core integrity fell below 50% 894 | -10/Materials | Discovered new exit (range 15) 929 | -10/Materials | Discovered new exit (range 15) 1253 | -10/Materials | Repaired Beam Cannon 1297 | -10/Materials | Entered Mines 1322 | -10/Mines | Discovered new exit (range 6) 1363 | -10/Mines | Learned Materials emergency access door positions 1446 | -10/Mines | Found a hidden stash of uninstalled traps 1505 | -10/Mines | Assembled infested the area 1528 | -10/Mines | Core integrity fell below 20% 1531 | -10/Mines | Destroyed by as-82995 with Assembled Blade Last Messages --------------- 01517_ as-20361 destroyed. 01517_ Destroyed Asb. F-torch. 01517_ as-66446 destroyed. 01519_ Destroyed Asb. Hover Unit. 01519_ as-13634 destroyed. 01523_ as-28123 destroyed. 01523_ as-60719 destroyed. 01523_ as-97967 destroyed. 01524_ as-00497 destroyed. 01525_ Beam Cannon destroyed. 01525_ as-46853 destroyed. 01525_ as-84953 destroyed. 01525_ as-84756 destroyed. 01527_ Ion Engine destroyed. 01527_ Destroyed Asb. Hover Unit. 01527_ as-12092 destroyed. 01527_ as-49348 destroyed. 01528_ Seismic Detector destroyed. 01530_ Com. Wheel destroyed. 01531_ Grenade Launcher destroyed. Map ----- +----------------------------------------------------+ | #????## ### #????????????????????????? | | #???## ####?# #????????????????????????? | | ##???# ##????# #????????????????????????? | | ##???# ##?????# ##???????????????????????? | | # ##??# ######### ####### # ???????????? | | ## #### ???????##??? | | ?# ## #??????## #??? | | ## ######### #########???????## #??? | | ##???????## #??????????????##^ ##?? | | ###????????## #?????????????## #?? | | ##?????????## ##???????????## ^ #?? | | #????????### ##????????### ^ #?? | | #??####### ##??????## ^ ^ ##?? | | ######## ### ##??? | | ## ##?####???? | | ########### ##?????????? | | ##?????????## #??????????? | | #????????????# ##??????????? | | ????????????## ##???????????? | | ????????????# #### ##????????????? | | ????????????# ##??## #?????????????? | | ??????????????# #????## ##?????????????? | | ???????????????## ##????###??????????????? | | ????????????????### ###???????????????????? | | ??????????????????## ##??????????????????? | | ???????????????????## @ #??????????????????? | | ???????????????????# aa #???????????????? | | ???????????????????# #??????????????? | | ??????????????????# a #??????????????? | | ??????????????????## a ##??????????????? | | ???????????????????# #???????????????? | | ???????????????????# a ## #??????????????? | | ??????????????????? a #?# #?????????????? | | ?????????????????? ??# #????????????? | | ?????????????????## #??? #????????????? | | ??????????????????# % ????? ????????????? | | ?????????????????? % ????? ???????????? | | ?????????????????# a ?????? ????????????? | | ?????????????????? #####?????????????????????? | | ???????????????????????????????????????????????? | | ???????????????????????????????????????????????? | | ???????????????????????????????????????????????? | | ???????????????????????????????????????????????? | | ???????????????????????????????????????????????? | | ???????????????????????????????????????????????? | | ???????????????????????????????????????????????? | | ???????????????????????????????????????????????? | | | | | | | +----------------------------------------------------+ Best States ------------- Heat Dissipation 35 Energy Generation 10 Energy Capacity 250 Matter Stores 300 Matter Capacity 300 Sight Range 16 Terrain Scan Density 10 Evasion (%) 40 Item Schematics ----------------- Hcp. Storage Unit | -10/Materials | Hacked Huge Storage Unit | -10/Materials | Hacked Robot Schematics ------------------ None Fabricated ------------ Nothing Repaired ---------- Beam Cannon | 63% | -10/Materials Alien Tech Used ----------------- None Achievements -------------- None Challenges ------------ None Game ------ Seed HellfireDecoyDetonator Manual? 0 Play Time 00:13:45 Cumulative 279.4 hours Start 2025.08.29 @ 17:58:14 End 2025.08.29 @ 18:09:53 Sessions 1 Manual Loads 0 Difficulty Rogue Special Mode None Game No. 191 Rogue 191 Adventurer 0 Explorer 0 Win Type - Total 3 Types 3/0/0/0/0/0/0/0/0/0 Lore% 73 Gallery% 72 Achievement% 60 Wizard Run 0 Options --------- Layout 1 ASCII 0 Keyboard 0 Movement Mouse Keybinds 0 Fullscreen 1 Font 32/SmallcapsGlow Map View 50x35 Zoom Use 0% Tactical HUD 1 Map Filters NONE Filters NONE Steam 1 RUN: 2e1a5987-642c-4565-baab-fb9dd165e08d